fUSD/lending_fUSD_20250219
["ID","MTS","AMOUNT","RATE_DAILY","PERIOD"]
[353639967,1739977832340,-150.0,0.00011544,2]
[353639968,1739977832349,-150.0,0.00011574,2]
[353639971,1739977832358,-150.0,0.00011577,2]
[353639973,1739977832367,-150.0,0.0001165,2]
[353639976,1739977832377,-150.0,0.00011698,2]
[353639980,1739977832387,-150.0,0.00011706,2]
[353639983,1739977832397,-150.0,0.00011755,2]
[353639986,1739977832406,-315.96,0.00011793,2]
[353639988,1739977832415,-150.0,0.00011812,2]
[353639991,1739977832424,-10233.73691551,0.00011834,2]
[353639994,1739977832434,-150.0,0.00011834,2]
[353639997,1739977832442,-150.0,0.00011843,2]
[353640000,1739977832451,-150.0,0.0001185,2]
[353640004,1739977832461,-150.0,0.00011853,2]
[353640007,1739977832471,-150.0,0.00011867,2]
[353640009,1739977832481,-150.0,0.00011882,2]
[353640012,1739977832490,-775.51,0.00012058,2]
[353640014,1739977832500,-150.0,0.00012079,2]
[353640016,1739977832509,-150.0,0.0001208,2]
[353640018,1739977832520,-150.0,0.00012147,2]
[353640020,1739977832529,-150.0,0.00012171,2]
[353640022,1739977832539,-150.0,0.00012194,2]
[353640024,1739977832548,-150.0,0.00012197,2]
[353640025,1739977832557,-1000.0,0.00012233,2]
[353640026,1739977832566,-150.0,0.00012279,2]
[353640027,1739977832576,-150.0,0.0001231,2]
[353640028,1739977832586,-250.0,0.0001231,2]
[353640029,1739977832595,-150.0,0.00012337,2]
[353640030,1739977832605,-150.0,0.00012342,2]
[353640031,1739977832614,-150.0,0.00012349,2]
[353640032,1739977832623,-172.67,0.00012377,2]
[353640033,1739977832632,-150.0,0.00012379,2]
[353640034,1739977832641,-150.0,0.00012402,2]
[353640035,1739977832650,-150.0,0.00012403,2]
[353640036,1739977832660,-150.0,0.00012406,2]
[353640037,1739977832670,-150.0,0.00012411,2]
[353640038,1739977832679,-3421.5708602,0.00012426,2]
[353640039,1739977832689,-1000.0,0.0001243,2]
[353640040,1739977832698,-1000.0,0.0001245,2]
[353640041,1739977832708,-150.0,0.00012456,2]
[353640042,1739977832717,-150.0,0.00012461,2]
[353640043,1739977832727,-150.0,0.00012486,2]
[353640044,1739977832736,-234.09191355,0.000125,2]
[353640045,1739977832745,-150.0,0.00012559,2]
[353640046,1739977832755,-150.0,0.00012573,2]
[353640047,1739977832767,-150.0,0.00012586,2]
[353640048,1739977832776,-3000.61120097,0.000126,2]
[353640049,1739977832786,-150.0,0.00012603,2]
[353640050,1739977832795,-202.519868,0.00012606,2]
[353640051,1739977832805,-150.0,0.00012607,2]
[353640052,1739977832814,-150.0,0.00012623,2]
[353640053,1739977832824,-1000.0,0.00012623,2]
[353640054,1739977832833,-150.0,0.00012637,2]
[353640055,1739977832844,-150.0,0.0001265,2]
[353640056,1739977832853,-250.0,0.0001265,2]
[353640057,1739977832863,-150.0,0.00012662,2]
[353640058,1739977832872,-150.0,0.00012677,2]
[353640059,1739977832882,-150.0,0.00012701,2]
[353640060,1739977832892,-587.07610454,0.00012712,2]
[353640061,1739977832902,-150.0,0.00012742,2]
[353640062,1739977832912,-150.0,0.00012801,2]
[353640063,1739977832922,-150.0,0.00012813,2]
[353640064,1739977832932,-150.0,0.00012815,2]
[353640065,1739977832941,-150.0,0.00012842,2]
[353640066,1739977832951,-150.0,0.00012862,2]
[353640067,1739977832962,-150.0,0.00012866,2]
[353640068,1739977832973,-150.0,0.00012953,2]
[353640069,1739977832983,-150.0,0.0001296,2]
[353640070,1739977832994,-432.31286095,0.00012967,2]
[353640071,1739977833007,-150.0,0.00012989,2]
[353640072,1739977833020,-150.0,0.00012993,2]
[353640073,1739977833031,-3000.0,0.00013,2]
[353640074,1739977833041,-550.0,0.00013,2]
[353640075,1739977833051,-150.0,0.00013009,2]
[353640076,1739977833062,-150.0,0.00013017,2]
[353640077,1739977833072,-150.0,0.00013027,2]
[353640078,1739977833084,-150.0,0.00013029,2]
[353640079,1739977833095,-509.53,0.00013034,2]
[353640080,1739977833106,-490.79,0.00013034,2]
[353640081,1739977833116,-491.57,0.00013034,2]
[353640082,1739977833126,-795.0,0.00013034,3]
[353640083,1739977833136,-150.0,0.00013052,2]
[353640084,1739977833147,-1000.0,0.00013084,2]
[353640085,1739977833157,-150.0,0.0001309,2]
[353640086,1739977833168,-5204.0362,0.00013119,2]
[353640087,1739977833178,-1510.7848,0.00013119,2]
[353640088,1739977833188,-150.0,0.0001312,2]
[353640089,1739977833198,-150.0,0.00013128,2]
[353640090,1739977833209,-150.0,0.0001313,2]
[353640091,1739977833218,-1787.0,0.00013131,2]
[353640092,1739977833229,-1266.0,0.00013131,2]
[353640093,1739977833239,-908.0,0.00013131,2]
[353640094,1739977833251,-1424.0,0.00013131,2]
[353640095,1739977833263,-784.0,0.00013131,2]
[353640096,1739977833274,-4030.0,0.00013131,2]
[353640097,1739977833284,-539.0,0.00013131,2]
[353640098,1739977833293,-3918.0,0.00013131,2]
[353640099,1739977833303,-150.0,0.00013131,2]
[353640100,1739977833313,-346.213,0.00013131,2]
[353640101,1739977833323,-471.5714,0.00013137,2]
[353640102,1739977833333,-1708.2857,0.00013137,2]
[353640103,1739977833343,-733.2751,0.00013137,2]
[353640104,1739977833352,-530.3104,0.00013137,2]
[353640105,1739977833363,-2197.53393429,0.00013137,2]
[353640106,1739977833373,-150.0,0.00013138,2]
[353640107,1739977833383,-489.295399,0.00013141,2]
[353640108,1739977833393,-1000.0,0.00013151,2]
[353640109,1739977833402,-195.83822872,0.00013179,2]
[353640110,1739977833411,-2197.53393427,0.00013188,2]
[353640111,1739977833421,-5000.0,0.00013213,2]
[353640112,1739977833430,-160.78932813,0.00013213,2]
[353640113,1739977833441,-1418.48136138,0.00013213,2]
[353640114,1739977833450,-309.33082795,0.00013213,2]
[353640115,1739977833459,-150.0,0.00013217,2]
[353640116,1739977833469,-22240.7694,0.00013219,2]
[353640117,1739977833479,-484.11091126,0.00013237,2]
[353640118,1739977833490,-504.99,0.00013237,2]
[353640119,1739977833500,-1107.73,0.00013237,2]
[353640120,1739977833510,-673.32,0.00013237,2]
[353640121,1739977833521,-724.71,0.00013237,2]
[353640122,1739977833531,-1038.34,0.00013237,2]
[353640123,1739977833540,-500.0,0.00013237,2]
[353640124,1739977833550,-1030.35,0.00013237,2]
[353640125,1739977833560,-500.0,0.00013237,2]
[353640126,1739977833570,-1436.83,0.00013237,2]
[353640127,1739977833580,-500.0,0.00013237,2]
[353640128,1739977833590,-500.0,0.00013237,2]
[353640129,1739977833600,-921.67,0.00013237,2]
[353640130,1739977833610,-500.0,0.00013237,2]
[353640131,1739977833619,-981.2,0.00013237,2]
[353640132,1739977833629,-500.0,0.00013237,2]
[353640133,1739977833639,-584.3,0.00013237,2]
[353640134,1739977833649,-871.97,0.00013237,2]
[353640135,1739977833659,-1304.91,0.00013237,2]
[353640136,1739977833669,-1120.65,0.00013237,2]
[353640137,1739977833679,-530.40543059,0.00013237,2]
[353640138,1739977833689,-500.0,0.00013237,2]
[353640139,1739977833698,-911.63,0.00013237,2]
[353640140,1739977833708,-500.0,0.00013237,2]
[353640141,1739977833718,-1094.12,0.00013237,2]
[353640142,1739977833728,-500.0,0.00013237,2]
[353640143,1739977833738,-424.82249176,0.00013237,2]
[353640144,1739977833747,-639.62,0.00013237,2]
[353640145,1739977833758,-583.26,0.00013237,2]
[353640146,1739977833769,-500.0,0.00013237,2]
[353640147,1739977833780,-861.52,0.00013237,2]
[353640148,1739977833790,-1221.93,0.00013237,2]
[353640149,1739977833801,-789.09,0.00013237,2]
[353640150,1739977833810,-1723.93,0.00013237,2]
[353640151,1739977833820,-721.44,0.00013237,2]
[353640152,1739977833830,-784.04,0.00013237,2]
[353640153,1739977833840,-594.79,0.00013237,2]
[353640154,1739977833850,-1160.0,0.00013237,2]
[353640155,1739977833860,-734.79,0.00013237,2]
[353640156,1739977833870,-1307.94,0.00013237,2]
[353640157,1739977833880,-1053.09,0.00013237,2]
[353640158,1739977833891,-622.63,0.00013237,2]
[353640159,1739977833901,-741.18,0.00013237,2]
[353640160,1739977833912,-736.14,0.00013237,2]
[353640161,1739977833922,-923.31,0.00013237,2]
[353640162,1739977833931,-500.0,0.00013237,2]
[353640163,1739977833941,-941.61,0.00013237,2]
[353640164,1739977833951,-535.97,0.00013237,2]
[353640165,1739977833961,-500.0,0.00013237,2]
[353640166,1739977833971,-1145.75,0.00013237,2]
[353640167,1739977833981,-500.0,0.00013237,2]
[353640168,1739977833993,-1733.94,0.00013237,2]
[353640169,1739977834007,-1469.34,0.00013237,2]
[353640170,1739977834022,-896.27,0.00013237,2]
[353640171,1739977834032,-1093.12,0.00013237,2]
[353640172,1739977834043,-1417.53,0.00013237,2]
[353640173,1739977834054,-500.0,0.00013237,2]
[353640174,1739977834064,-1834.99,0.00013237,2]
[353640175,1739977834074,-1390.95,0.00013237,2]
[353640176,1739977834083,-1689.15,0.00013237,2]
[353640177,1739977834094,-500.0,0.00013237,2]
[353640178,1739977834104,-1348.8,0.00013237,2]
[353640179,1739977834113,-1000.43,0.00013237,2]
[353640180,1739977834123,-858.96,0.00013237,2]
[353640181,1739977834133,-502.15886099,0.00013237,2]
[353640182,1739977834143,-500.0,0.00013237,2]
[353640183,1739977834152,-1211.98,0.00013237,2]
[353640184,1739977834162,-901.71,0.00013237,2]
[353640185,1739977834172,-1156.1,0.00013237,2]
[353640186,1739977834183,-1014.32,0.00013237,2]
[353640187,1739977834192,-513.14,0.00013237,2]
[353640188,1739977834202,-500.0,0.00013237,2]
[353640189,1739977834211,-1362.63,0.00013237,2]
[353640190,1739977834221,-1347.62,0.00013237,2]
[353640191,1739977834230,-1570.9,0.00013237,2]
[353640192,1739977834239,-500.0,0.00013237,2]
[353640193,1739977834248,-500.0,0.00013237,2]
[353640194,1739977834258,-500.0,0.00013237,2]
[353640195,1739977834270,-950.68,0.00013237,2]
[353640196,1739977834280,-686.15,0.00013237,2]
[353640197,1739977834289,-500.0,0.00013237,2]
[353640198,1739977834299,-939.55,0.00013237,2]
[353640199,1739977834308,-852.58,0.00013237,2]
[353640200,1739977834318,-1331.26,0.00013237,2]
[353640201,1739977834327,-2197.53393427,0.00013239,2]
[353640202,1739977834337,-150.0,0.00013246,2]
[353640203,1739977834347,-1418.48136133,0.00013253,2]
[353640204,1739977834356,-2582.49,0.00013266,2]
[353640205,1739977834366,-1656.89,0.00013266,2]
[353640206,1739977834376,-1492.26,0.00013266,2]
[353640207,1739977834386,-2157.45,0.00013266,2]
[353640208,1739977834396,-1290.39,0.00013266,2]
[353640209,1739977834406,-795.24,0.00013266,2]
[353640210,1739977834415,-2477.07,0.00013266,2]
[353640211,1739977834425,-500.0,0.00013266,2]
[353640212,1739977834435,-2722.01,0.00013266,2]
[353640213,1739977834445,-2428.62,0.00013266,2]
[353640214,1739977834455,-684.65,0.00013266,2]
[353640215,1739977834466,-509.47741987,0.00013266,2]
[353640216,1739977834475,-3086.14,0.00013266,2]
[353640217,1739977834486,-541.68,0.00013266,2]
[353640218,1739977834496,-3912.17,0.00013266,2]
[353640219,1739977834505,-1361.83,0.00013266,2]
[353640220,1739977834518,-2510.68,0.00013266,2]
[353640221,1739977834527,-500.0,0.00013266,2]
[353640222,1739977834536,-1210.98,0.00013266,2]
[353640223,1739977834546,-2341.25,0.00013266,2]
[353640224,1739977834556,-2676.86,0.00013266,2]
[353640225,1739977834567,-290.48986192,0.00013266,2]
[353640226,1739977834576,-541.44004474,0.00013266,2]
[353640227,1739977835100,-2670.09995526,0.00013266,2]
[353640228,1739977835110,-500.0,0.00013266,2]
[353640229,1739977835120,-219.5911808,0.00013266,2]
[353640230,1739977835129,-500.0,0.00013266,2]
[353640231,1739977835138,-1892.21,0.00013266,2]
[353640232,1739977835147,-507.96417591,0.00013266,2]
[353640233,1739977835157,-500.0,0.00013266,2]
[353640234,1739977835167,-2992.8,0.00013266,2]
[353640235,1739977835176,-1534.61,0.00013267,2]
[353640236,1739977835186,-500.0,0.00013267,2]
[353640237,1739977835202,-500.0,0.00013267,2]
[353640238,1739977835213,-500.0,0.00013267,2]
[353640239,1739977835223,-500.0,0.00013267,2]
[353640240,1739977835232,-500.0,0.00013267,2]
[353640241,1739977835242,-500.0,0.00013267,2]
[353640242,1739977835251,-500.0,0.00013267,2]
[353640243,1739977835261,-506.37582476,0.00013267,2]
[353640244,1739977835272,-751.44,0.00013267,2]
[353640245,1739977835281,-1191.95,0.00013267,2]
[353640246,1739977835291,-500.0,0.00013267,2]
[353640247,1739977835300,-608.66,0.00013267,2]
[353640248,1739977835310,-754.71,0.00013267,2]
[353640249,1739977835319,-572.89,0.00013267,2]
[353640250,1739977835329,-500.0,0.00013267,2]
[353640251,1739977835338,-664.65,0.00013267,2]
[353640252,1739977835348,-819.07,0.00013267,2]
[353640253,1739977835357,-500.0,0.00013267,2]
[353640254,1739977835366,-1183.03,0.00013267,2]
[353640255,1739977835376,-500.0,0.00013267,2]
[353640256,1739977835386,-500.0,0.00013267,2]
[353640257,1739977835395,-500.0,0.00013267,2]
[353640258,1739977835405,-500.0,0.00013267,2]
[353640259,1739977835414,-752.81,0.00013267,2]
[353640260,1739977835424,-779.78,0.00013267,2]
[353640261,1739977835434,-767.56,0.00013267,2]
[353640262,1739977835443,-500.0,0.00013267,2]
[353640263,1739977835452,-1005.69380368,0.00013267,2]
[353640264,1739977835464,-206.05619632,0.00013267,2]
[353640265,1739977835474,-1002.49,0.00013267,2]
[353640266,1739977835484,-500.0,0.00013267,2]
[353640267,1739977835493,-1039.75,0.00013267,2]
[353640268,1739977835503,-500.0,0.00013267,2]
[353640269,1739977835512,-1733.96,0.00013267,2]
[353640270,1739977835522,-2764.19,0.00013267,2]
[353640271,1739977835786,-500.0,0.00013267,2]
[353640272,1739977835796,-2667.21,0.00013267,2]
[353640273,1739977835806,-500.0,0.00013267,2]
[353640274,1739977835816,-592.14,0.00013267,2]
[353640275,1739977835826,-500.0,0.00013267,2]
[353640276,1739977835835,-711.43,0.00013267,2]
[353640277,1739977835845,-1539.24,0.00013267,2]
[353640278,1739977835854,-1865.71,0.00013267,2]
[353640279,1739977835863,-1620.80138,0.00013267,2]
[353640280,1739977835872,-150.0,0.00013267,2]
[353640281,1739977835882,-1773.5,0.00013267,2]
[353640282,1739977835892,-500.0,0.00013267,2]
[353640283,1739977835901,-1108.21,0.00013267,2]
[353640284,1739977835911,-1351.82,0.00013267,2]
[353640285,1739977835921,-159.64705,0.00013267,2]
[353640286,1739977835931,-152.680738,0.00013267,2]
[353640287,1739977835941,-500.0,0.00013267,2]
[353640288,1739977835950,-312.53670924,0.00013267,2]
[353640289,1739977835969,-1071.66329076,0.00013267,2]
[353640290,1739977835979,-2111.11,0.00013267,2]
[353640291,1739977835990,-857.91,0.00013267,2]
[353640292,1739977836001,-2385.58,0.00013267,2]
[353640293,1739977836012,-500.0,0.00013267,2]
[353640294,1739977836024,-2242.57,0.00013267,2]
[353640295,1739977836036,-930.34,0.00013267,2]
[353640296,1739977836045,-1667.90881,0.00013267,2]
[353640297,1739977836055,-1898.07,0.00013267,2]
[353640298,1739977836065,-500.0,0.00013267,2]
[353640299,1739977836075,-2288.4,0.00013267,2]
[353640300,1739977836085,-500.0,0.00013267,2]
[353640301,1739977836097,-1075.39,0.00013267,2]
[353640302,1739977836106,-7731.62,0.00013267,2]
[353640303,1739977836116,-1071.71,0.00013267,2]
[353640304,1739977836125,-2561.05,0.00013267,2]
[353640305,1739977836135,-1515.54,0.00013267,2]
[353640306,1739977836144,-500.0,0.00013267,2]
[353640307,1739977836155,-1773.77,0.00013267,2]
[353640308,1739977836164,-2993.72,0.00013267,2]
[353640309,1739977836175,-1268.06,0.00013267,2]
[353640310,1739977836184,-1090.8,0.00013267,2]
[353640311,1739977836194,-3446.38,0.00013267,2]
[353640312,1739977836204,-2080.37,0.00013267,2]
[353640313,1739977836213,-1949.85,0.00013267,2]
[353640314,1739977836222,-500.0,0.00013267,2]
[353640315,1739977836232,-4834.67,0.00013267,2]
[353640316,1739977836241,-500.0,0.00013267,2]
[353640317,1739977836250,-2499.59,0.00013267,2]
[353640318,1739977836259,-732.52,0.00013267,2]
[353640319,1739977836270,-2049.28,0.00013267,2]
[353640320,1739977836279,-500.0,0.00013267,2]
[353640321,1739977836289,-3531.25,0.00013267,2]
[353640322,1739977836299,-500.0,0.00013267,2]
[353640323,1739977836309,-1632.46,0.00013267,2]
[353640324,1739977836320,-150.0,0.00013274,2]
[353640325,1739977836330,-150.0,0.00013277,2]
[353640326,1739977836339,-150.0,0.0001328,2]
[353640327,1739977836349,-150.0,0.00013286,2]
[353640328,1739977836359,-150.0,0.00013288,2]
[353640329,1739977836368,-2197.53393427,0.0001329,2]
[353640330,1739977836378,-1318.75640349,0.00013293,2]
[353640331,1739977836389,-99.72495784,0.00013293,2]
[353640332,1739977836399,-212.90934926,0.00013301,2]
[353640333,1739977836408,-1000.0,0.00013304,2]
[353640334,1739977836417,-500.0,0.00013313,2]
[353640335,1739977836427,-501.84431738,0.00013313,2]
[353640336,1739977836436,-500.0,0.00013313,2]
[353640337,1739977836446,-574.21,0.00013313,2]
[353640338,1739977836456,-500.0,0.00013313,2]
[353640339,1739977836466,-500.0,0.00013313,2]
[353640340,1739977836475,-500.0,0.00013313,2]
[353640341,1739977836485,-500.90151274,0.00013313,2]
[353640342,1739977836495,-500.0,0.00013313,2]
[353640343,1739977836505,-500.0,0.00013313,2]
[353640344,1739977836516,-589.84934147,0.00013313,2]
[353640345,1739977836525,-500.0,0.00013313,2]
[353640346,1739977836535,-500.0,0.00013313,2]
[353640347,1739977836545,-1040.26,0.00013313,2]
[353640348,1739977836555,-173.30957421,0.00013313,2]
[353640349,1739977836564,-500.0,0.00013313,2]
[353640350,1739977836573,-500.0,0.00013313,2]
[353640351,1739977836582,-500.0,0.00013313,2]
[353640352,1739977836591,-504.12757462,0.00013313,2]
[353640353,1739977836602,-505.14548056,0.00013313,2]
[353640354,1739977836612,-607.70010602,0.00013313,2]
[353640355,1739977836622,-500.9935282,0.00013313,2]
[353640356,1739977836632,-501.15130052,0.00013313,2]
[353640357,1739977836641,-1127.93,0.00013313,2]
[353640358,1739977836652,-500.0,0.00013313,2]
[353640359,1739977836662,-542.49918923,0.00013313,2]
[353640360,1739977836671,-500.64852884,0.00013313,2]
[353640361,1739977836681,-678.85,0.00013313,2]
[353640362,1739977836690,-500.0,0.00013313,2]
[353640363,1739977836699,-501.83506333,0.00013313,2]
[353640364,1739977836709,-500.0,0.00013313,2]
[353640365,1739977836719,-500.0,0.00013313,2]
[353640366,1739977836730,-500.0,0.00013313,2]
[353640367,1739977836739,-500.0,0.00013313,2]
[353640368,1739977836749,-501.29873366,0.00013313,2]
[353640369,1739977836758,-393.11443953,0.00013313,2]
[353640370,1739977836770,-500.0,0.00013313,2]
[353640371,1739977836779,-500.0,0.00013313,2]
[353640372,1739977836789,-322.60769507,0.00013313,2]
[353640373,1739977836798,-503.4784583,0.00013313,2]
[353640374,1739977836808,-500.0,0.00013313,2]
[353640375,1739977836819,-500.0,0.00013313,2]
[353640376,1739977836828,-500.0,0.00013313,2]
[353640377,1739977836837,-500.0,0.00013313,2]
[353640378,1739977836845,-500.0,0.00013313,2]
[353640379,1739977836854,-139.21595218,0.00013313,2]
[353640380,1739977836901,-362.95617017,0.00013313,2]
[353640381,1739977836911,-500.0,0.00013313,2]
[353640382,1739977836921,-595.98482865,0.00013313,2]
[353640383,1739977836931,-501.0150584,0.00013313,2]
[353640384,1739977836941,-500.0,0.00013313,2]
[353640385,1739977836951,-500.0,0.00013313,2]
[353640386,1739977836961,-500.70862141,0.00013313,2]
[353640387,1739977836971,-500.0,0.00013313,2]
[353640388,1739977836981,-500.0,0.00013313,2]
[353640389,1739977836990,-2812.11,0.00013313,2]
[353640390,1739977837001,-504.33790305,0.00013313,2]
[353640391,1739977837011,-502.68440932,0.00013313,2]
[353640392,1739977837024,-1102.34,0.00013313,2]
[353640393,1739977837035,-501.70150771,0.00013313,2]
[353640394,1739977837045,-500.0,0.00013313,2]
[353640395,1739977837055,-500.0,0.00013313,2]
[353640396,1739977837065,-500.0,0.00013313,2]
[353640397,1739977837078,-502.95514053,0.00013313,2]
[353640398,1739977837088,-500.0,0.00013313,2]
[353640399,1739977837098,-500.0,0.00013313,2]
[353640400,1739977837108,-500.0,0.00013313,2]
[353640401,1739977837118,-500.0,0.00013313,2]
[353640402,1739977837128,-500.0,0.00013313,2]
[353640403,1739977837137,-500.0,0.00013313,2]
[353640404,1739977837147,-500.0,0.00013313,2]
[353640405,1739977837156,-500.0,0.00013313,2]
[353640406,1739977837166,-500.0,0.00013313,2]
[353640407,1739977837175,-500.0,0.00013313,2]
[353640408,1739977837185,-742.93,0.00013313,2]
[353640409,1739977837195,-500.0,0.00013313,2]
[353640410,1739977837205,-502.23849842,0.00013313,2]
[353640411,1739977837215,-500.0,0.00013313,2]
[353640412,1739977837226,-500.0,0.00013313,2]
[353640413,1739977837236,-500.0,0.00013313,2]
[353640414,1739977837245,-500.0,0.00013313,2]
[353640415,1739977837255,-1199.78,0.00013313,2]
[353640416,1739977837267,-500.0,0.00013313,2]
[353640417,1739977837277,-545.94,0.00013313,2]
[353640418,1739977837287,-500.0,0.00013313,2]
[353640419,1739977837297,-942.96,0.00013313,2]
[353640420,1739977837307,-500.0,0.00013313,2]
[353640421,1739977837316,-500.0,0.00013313,2]
[353640422,1739977837326,-500.0,0.00013313,2]
[353640423,1739977837335,-1205.01,0.00013313,2]
[353640424,1739977837345,-625.86,0.00013313,2]
[353640425,1739977837355,-500.0,0.00013313,2]
[353640426,1739977837364,-500.0,0.00013313,2]
[353640427,1739977837374,-500.0,0.00013313,2]
[353640428,1739977837383,-759.56,0.00013313,2]
[353640429,1739977837393,-500.72698189,0.00013313,2]
[353640430,1739977837402,-500.0,0.00013313,2]
[353640431,1739977837412,-500.0,0.00013313,2]
[353640432,1739977837422,-500.0,0.00013313,2]
[353640433,1739977837431,-500.0,0.00013313,2]
[353640434,1739977837440,-500.0,0.00013313,2]
[353640435,1739977837450,-500.0,0.00013313,2]
[353640436,1739977837460,-500.0,0.00013313,2]
[353640437,1739977837470,-500.0,0.00013313,2]
[353640438,1739977837480,-500.0,0.00013313,2]
[353640439,1739977837489,-609.78,0.00013313,2]
[353640440,1739977837499,-500.0,0.00013313,2]
[353640441,1739977837508,-500.0,0.00013313,2]
[353640442,1739977837519,-500.0,0.00013313,2]
[353640443,1739977837528,-500.0,0.00013313,2]
[353640444,1739977837538,-500.0,0.00013313,2]
[353640446,1739977837548,-500.0,0.00013313,2]
[353640447,1739977837557,-500.0,0.00013313,2]
[353640448,1739977837567,-504.54184634,0.00013313,2]
[353640449,1739977837576,-500.0,0.00013313,2]
[353640450,1739977837586,-544.99,0.00013313,2]
[353640451,1739977837596,-503.0467604,0.00013313,2]
[353640452,1739977837606,-500.0,0.00013313,2]
[353640453,1739977837616,-500.0,0.00013313,2]
[353640454,1739977837626,-500.33725453,0.00013313,2]
[353640455,1739977837635,-500.0,0.00013313,2]
[353640456,1739977837646,-500.0,0.00013313,2]
[353640457,1739977837655,-522.36754824,0.00013313,2]
[353640458,1739977837665,-500.0,0.00013313,2]
[353640459,1739977837676,-774.07,0.00013313,2]
[353640460,1739977837685,-501.29055799,0.00013313,2]
[353640461,1739977837695,-500.0,0.00013313,2]
[353640462,1739977837705,-500.0,0.00013313,2]
[353640463,1739977837715,-500.79350482,0.00013313,2]
[353640464,1739977837725,-501.369541,0.00013313,2]
[353640465,1739977837735,-500.0,0.00013313,2]
[353640466,1739977837745,-500.0,0.00013313,2]
[353640467,1739977837755,-664.5,0.00013313,2]
[353640468,1739977837766,-500.0,0.00013313,2]
[353640469,1739977837776,-500.0,0.00013313,2]
[353640470,1739977837786,-500.0,0.00013313,2]
[353640471,1739977837797,-500.0,0.00013313,2]
[353640472,1739977837806,-500.0,0.00013313,2]
[353640473,1739977837816,-500.0,0.00013313,2]
[353640474,1739977837826,-500.0,0.00013313,2]
[353640475,1739977837836,-500.0,0.00013313,2]
[353640476,1739977837846,-500.0,0.00013313,2]
[353640477,1739977837856,-739.18,0.00013313,2]
[353640478,1739977837866,-861.49,0.00013313,2]
[353640479,1739977837876,-500.0,0.00013313,2]
[353640480,1739977837886,-500.0,0.00013313,2]
[353640481,1739977837895,-500.0,0.00013313,2]
[353640482,1739977837905,-600.06,0.00013313,2]
[353640483,1739977837915,-500.0,0.00013313,2]
[353640484,1739977837925,-500.0,0.00013313,2]
[353640485,1739977837935,-500.0,0.00013313,2]
[353640486,1739977837944,-500.0,0.00013313,2]
[353640487,1739977837954,-500.0,0.00013313,2]
[353640488,1739977837965,-579.31,0.00013313,2]
[353640489,1739977837975,-500.85849681,0.00013313,2]
[353640490,1739977837985,-500.0,0.00013313,2]
[353640491,1739977837995,-256.06931154,0.00013313,2]
[353640492,1739977838009,-799.77,0.00013313,2]
[353640493,1739977838020,-500.0,0.00013313,2]
[353640494,1739977838030,-500.0,0.00013313,2]
[353640495,1739977838043,-500.0,0.00013313,2]
[353640496,1739977838053,-500.0,0.00013313,2]
[353640497,1739977838063,-500.0,0.00013313,2]
[353640498,1739977838072,-500.0,0.00013313,2]
[353640500,1739977838084,-500.0,0.00013313,2]
[353640501,1739977838094,-500.0,0.00013313,2]
[353640504,1739977838104,-500.0,0.00013313,2]
[353640506,1739977838114,-500.0,0.00013313,2]